bitfinex/quotes_SOLUSD_20250601
["timestamp","ask_amount","ask_price","bid_price","bid_amount"]
[1748739287852,10.54639259,155.94,155.93,6.41313409]
[1748739288256,39.3,155.98,155.93,6.41313409]
[1748739288257,10.54639259,155.96,155.93,6.41313409]
[1748739288960,10.54639259,155.96,155.92,6.4135454]
[1748739289159,10.54639259,155.96,155.92,22.44740891]
[1748739291263,10.54639259,155.96,155.92,6.4135454]
[1748739296975,10.54639259,155.96,155.91,22.4487233]
[1748739297181,10.54639259,155.96,155.92,10.54639259]
[1748739301364,10.54639259,155.96,155.93,6.41313409]
[1748739301765,10.54639259,155.95,155.93,6.41313409]
[1748739302463,10.54639259,155.97,155.93,16.95952668]
[1748739304493,14.07033315,156.02,155.96,10.54639259]
[1748739304657,10.54639259,156.01,155.96,10.54639259]
[1748739304981,10.54639259,156.01,155.97,10.54639259]
[1748739305779,10.54639259,156.01,155.98,6.41107834]
[1748739306588,31.20823053,156.02,155.98,6.41107834]
[1748739308076,20.76639259,156.02,155.98,6.41107834]
[1748739308781,20.76639259,156.02,155.97,26.57501795]
[1748739309672,20.76639259,156.02,155.98,6.41107834]
[1748739311698,20.76639259,156.02,155.98,22.43877419]
[1748739311990,149.14216157,156.06,155.98,22.43877419]
[1748739311991,10.54639259,156.03,155.98,32.98516678]
[1748739314426,185.34216157,156.06,155.98,32.98516678]
[1748739314591,10.54639259,156.05,156.0,10.54639259]
[1748739314903,10.54639259,156.04,156.0,10.54639259]
[1748739316274,49.5,156.06,156.0,10.54639259]
[1748739316522,10.54639259,156.05,156.01,6.40984552]
[1748739316691,10.54639259,156.04,156.01,6.40984552]
[1748739317277,10.54639259,156.05,156.01,6.40984552]
[1748739320917,10.54639259,156.05,155.99,18.64964886]
[1748739321091,10.54639259,156.04,155.99,29.19604145]
[1748739322301,10.54639259,156.04,156.0,6.41025641]
[1748739322795,10.54639259,156.05,156.0,16.956649]
[1748739322999,10.78867632,156.07,156.0,16.956649]
[1748739323200,6.40498074,156.13,156.04,18.64964886]
[1748739323391,10.54639259,156.1,156.05,10.54639259]
[1748739323789,10.54639259,156.09,156.03,26.0]
[1748739323988,10.54639259,156.08,156.03,36.54639259]
[1748739324505,10.54639259,156.08,156.04,6.40861317]
[1748739325300,10.54639259,156.08,156.05,7.6076]
[1748739326001,10.54639259,156.08,156.06,6.40779187]
[1748739326219,10.54639259,156.09,156.06,6.40779187]
[1748739329879,10.54639259,156.08,156.06,6.40779187]
[1748739332517,6.40582477,156.11,156.05,1.5527]
[1748739332518,10.54639259,156.07,156.05,1.5527]
[1748739332721,10.54639259,156.06,156.05,1.5527]
[1748739336015,10.54639259,156.06,156.04,6.40855008]
[1748739336607,10.54639259,156.06,156.02,10.54639259]
[1748739336608,10.54639259,156.06,156.03,6.4090239]
[1748739339336,10.54639259,156.06,156.02,6.40943468]
[1748739346312,45.74659213,156.09,156.02,6.40943468]
[1748739346614,10.54639259,156.06,156.02,6.40943468]
[1748739354712,6.74449528,156.06,156.02,6.40943468]
[1748739355415,6.74449528,156.07,156.02,6.40943468]
[1748739356542,6.74449528,156.06,156.02,6.40943468]
[1748739358529,6.74449528,156.06,156.02,4.90943468]
[1748739362318,6.74449528,156.07,156.02,4.90943468]
[1748739363547,45.70676737,156.09,156.02,4.90943468]
[1748739363548,6.74449528,156.05,156.02,4.90943468]
[1748739363746,6.74449528,156.04,156.02,4.90943468]
[1748739364548,6.74449528,156.04,156.0,25.05990527]
[1748739367938,6.74449528,156.04,156.0,25.05990527]
[1748739368749,6.74449528,156.05,156.0,31.80440055]
[1748739371451,6.74449528,156.05,156.0,47.83004157]
[1748739371629,6.74449528,156.06,156.01,6.74449528]
[1748739371947,21.1946,156.1,156.02,6.74449528]
[1748739372154,6.74449528,156.08,156.02,6.74449528]
[1748739373246,6.74449528,156.07,156.02,6.74449528]
[1748739373444,6.74449528,156.07,156.03,6.4090239]
[1748739380632,6.74449528,156.07,156.03,13.15351918]
[1748739389990,6.74449528,156.08,156.03,29.17607894]
[1748739390590,19.02567539,156.17,156.03,49.40956478]
[1748739390793,19.02567539,156.17,156.09,6.74449528]
[1748739390794,29.22567539,156.17,156.09,6.74449528]
[1748739391093,6.74449528,156.15,156.09,32.74449528]
[1748739391268,6.74449528,156.14,156.1,6.4061499]
[1748739394162,6.74449528,156.14,156.1,13.15064518]
[1748739395366,6.74449528,156.15,156.11,6.74449528]
[1748739396183,6.74449528,156.15,156.1,13.15064518]
[1748739397757,6.74449528,156.15,156.11,6.74449528]
[1748739398164,6.74449528,156.15,156.12,6.40532923]
[1748739401356,49.88,156.17,156.12,6.40532923]
[1748739401659,6.74449528,156.15,156.12,6.40532923]
[1748739404386,6.74449528,156.15,156.12,6.40532923]
[1748739407496,6.74449528,156.14,156.12,6.40532923]
[1748739408588,6.74449528,156.14,156.11,6.40573954]
[1748739411184,6.74449528,156.14,156.1,13.15064518]
[1748739412568,6.74449528,156.15,156.1,13.15064518]
[1748739412775,6.74449528,156.14,156.1,6.4061499]
[1748739412975,6.74449528,156.14,156.1,13.15064518]
[1748739414811,6.74449528,156.15,156.11,6.74449528]
[1748739416801,6.74449528,156.15,156.12,6.40532923]
[1748739419906,6.74449528,156.14,156.11,6.40557085]
[1748739422702,39.56,156.16,156.11,6.40557085]
[1748739422703,6.74449528,156.15,156.11,6.40557085]
[1748739425580,6.74449528,156.14,156.11,6.40557085]
[1748739425811,6.74449528,156.14,156.1,6.40599581]
[1748739427818,6.74449528,156.14,156.1,13.15049109]
[1748739428020,6.74449528,156.14,156.1,6.40599581]
[1748739428335,6.74449528,156.14,156.1,13.15049109]
[1748739428839,6.74449528,156.15,156.1,13.15049109]
[1748739429222,6.74449528,156.15,156.1,6.40599581]
[1748739429533,6.74449528,156.15,156.1,13.15049109]
[1748739430045,6.74449528,156.14,156.1,13.15049109]
[1748739430233,6.74449528,156.12,156.09,33.98922089]
[1748739430425,6.74449528,156.12,156.09,32.40652089]
[1748739430739,46.18449528,156.12,156.09,32.40652089]
[1748739446548,46.18449528,156.12,156.09,26.0]
[1748739448147,46.18449528,156.12,156.09,32.40652738]
[1748739451028,46.04449528,156.12,156.09,32.40652738]
[1748739455146,6.74449528,156.11,156.06,6.40779187]
[1748739455453,6.74449528,156.07,156.06,26.0]
[1748739457836,39.3,156.08,156.06,32.40779187]
[1748739463064,17.02449528,156.12,156.07,6.74449528]
[1748739463268,39.3,156.11,156.07,6.74449528]
[1748739464177,46.04449528,156.11,156.08,6.40697078]
[1748739466053,46.04449528,156.11,156.07,6.4073813]
[1748739467777,6.74449528,156.11,156.07,6.4073813]
[1748739467982,39.3,156.1,156.07,6.4073813]
[1748739469472,39.3,156.11,156.07,13.15187658]
[1748739469978,39.3,156.11,156.08,6.74449528]
[1748739470186,39.3,156.12,156.08,6.74449528]
[1748739470680,39.3,156.13,156.1,6.74449528]
[1748739470979,39.3,156.13,156.09,51.39414414]
[1748739471360,39.3,156.13,156.1,6.4061499]
[1748739472989,56.32449528,156.14,156.1,6.4061499]
[1748739478572,6.74449528,156.12,156.11,26.0]
[1748739478963,6.74449528,156.12,156.09,32.40649273]
[1748739482694,6.74449528,156.12,156.09,26.0]
[1748739485082,6.74449528,156.12,156.09,32.40644718]
[1748739485299,6.74449528,156.13,156.09,32.40644718]
[1748739485515,6.74449528,156.13,156.09,39.15094246]
[1748739485984,56.32449528,156.14,156.09,39.15094246]
[1748739487897,17.02449528,156.14,156.09,39.15094246]
[1748739488101,17.02449528,156.14,156.11,6.40573954]
[1748739488993,18.78328893,156.17,156.11,13.15023482]
[1748739489298,46.02449528,156.15,156.11,6.40573954]
[1748739490683,6.74449528,156.15,156.11,6.40573954]
[1748739490886,46.02449528,156.15,156.11,6.40573954]
[1748739493199,6.74449528,156.13,156.1,6.40602933]
[1748739493588,6.74449528,156.12,156.11,26.0]
[1748739493904,6.74449528,156.12,156.09,32.40642517]
[1748739502388,6.74449528,156.13,156.09,32.40642517]
[1748739502613,46.02449528,156.14,156.09,39.15092045]
[1748739502797,39.28,156.14,156.1,6.74449528]
[1748739503888,39.28,156.14,156.11,6.40573954]
[1748739507198,56.22449528,156.15,156.11,6.40573954]
[1748739509613,16.94449528,156.15,156.11,6.40573954]
[1748739509923,10.2,156.15,156.11,29.16458367]
[1748739510098,46.02449528,156.16,156.11,29.16458367]
[1748739511408,6.74449528,156.15,156.11,29.16458367]
[1748739512817,6.74449528,156.15,156.11,22.42008839]
[1748739513018,6.74449528,156.15,156.11,29.16458367]
[1748739514829,6.74449528,156.15,156.11,13.15023482]
[1748739517335,6.74449528,156.14,156.11,6.40573954]
[1748739518336,6.74449528,156.14,156.12,26.0]
[1748739518728,39.28,156.16,156.12,26.0]
[1748739518924,6.74449528,156.15,156.12,26.0]
[1748739519118,39.28,156.16,156.12,26.0]
[1748739519119,6.74449528,156.14,156.12,26.0]
[1748739520313,39.28,156.16,156.12,26.0]
[1748739520631,46.02449528,156.16,156.12,32.40508175]
[1748739521944,28.27492967,156.17,156.12,32.40508175]
[1748739521945,9.49164074,156.17,156.12,55.16290011]
[1748739522238,39.28,156.18,156.14,6.74449528]
[1748739522436,46.02449528,156.18,156.13,25.39414414]
[1748739523521,39.28,156.18,156.13,25.39414414]
[1748739523718,6.74449528,156.17,156.12,48.41840483]
[1748739524023,6.74449528,156.17,156.12,55.16290011]
[1748739526516,46.00449528,156.18,156.13,6.74449528]
[1748739527848,46.00449528,156.18,156.14,6.40450877]
[1748739532554,46.00449528,156.18,156.13,6.40491897]
[1748739532555,6.74449528,156.17,156.13,6.40491897]
[1748739538431,10.2,156.19,156.13,13.14941425]
[1748739538753,46.00449528,156.18,156.13,13.14941425]
[1748739540953,7.6703,156.17,156.13,13.14941425]
[1748739542353,14.41479528,156.17,156.13,13.14941425]
[1748739543754,7.6703,156.17,156.14,25.39414414]
[1748739544735,7.6703,156.17,156.15,6.40409862]
[1748739546641,7.6703,156.17,156.15,13.1485939]
[1748739546848,7.6703,156.17,156.16,25.39414414]
[1748739548460,1.5896,156.17,156.16,25.39414414]
[1748739548843,1.5896,156.17,156.16,31.79783266]
[1748739550153,6.0164,156.21,156.17,18.64964886]
[1748739550363,7.5969,156.21,156.18,6.74449528]
[1748739551664,7.5969,156.21,156.19,6.40245854]
[1748739554347,7.5969,156.21,156.19,13.14695382]
[1748739556448,7.5969,156.21,156.18,13.14736376]
[1748739556677,1.5805,156.21,156.19,6.74449528]
[1748739557942,1.5805,156.21,156.2,32.74449528]
[1748739558540,1.5805,156.21,156.2,39.14654393]
[1748739558951,24.80989528,156.26,156.2,55.15166556]
[1748739559273,64.04989528,156.26,156.21,6.74449528]
[1748739560171,24.80989528,156.26,156.21,6.74449528]
[1748739560475,64.04989528,156.26,156.21,6.74449528]
[1748739561272,18.0654,156.26,156.22,13.14572431]
[1748739561473,24.80989528,156.26,156.22,13.14572431]
[1748739562880,18.60129528,156.26,156.22,13.14572431]
[1748739564965,18.60129528,156.26,156.22,6.40122903]
[1748739567993,16.94449528,156.26,156.22,6.40122903]
[1748739570860,10.2,156.26,156.22,6.40122903]
[1748739571080,45.98449528,156.27,156.22,13.14572431]
[1748739572690,6.74449528,156.27,156.22,13.14572431]
[1748739579990,6.74449528,156.27,156.23,6.74449528]
[1748739581018,6.74449528,156.27,156.24,6.40040962]
[1748739582918,6.74449528,156.27,156.22,6.74449528]
[1748739583927,6.74449528,156.27,156.23,6.4008193]
[1748739585618,39.22,156.29,156.23,39.14531458]
[1748739585619,6.74449528,156.28,156.23,39.14531458]
[1748739591348,6.74449528,156.25,156.23,26.0]
[1748739591808,6.74449528,156.25,156.23,32.40068498]
[1748739592010,6.74449528,156.26,156.23,32.40068498]
[1748739592929,6.3984208,156.29,156.23,32.40068498]
[1748739592930,0.14216157,156.28,156.23,32.40068498]
[1748739593134,6.74449528,156.26,156.23,32.40068498]
[1748739595113,6.74449528,156.27,156.23,32.40068498]
[1748739595428,6.74449528,156.28,156.23,39.14518026]
[1748739595922,10.40939893,156.28,156.23,39.14518026]
[1748739599524,6.74449528,156.28,156.23,39.14518026]
[1748739600127,10.18,156.3,156.23,39.14518026]
[1748739600427,6.74449528,156.29,156.25,6.4]
[1748739601310,6.74449528,156.28,156.25,6.4]
[1748739603614,49.4,156.3,156.25,6.4]
[1748739603816,6.74449528,156.28,156.25,6.4]
[1748739604121,6.74449528,156.28,156.24,6.40026142]
[1748739604927,6.74449528,156.25,156.22,26.0]
[1748739605140,0.14216157,156.29,156.22,26.0]
[1748739605141,6.74449528,156.24,156.22,26.0]
[1748739608441,6.74449528,156.25,156.22,32.40104018]
[1748739609129,6.74449528,156.24,156.22,26.0]
[1748739613916,6.74449528,156.25,156.22,32.40113807]
[1748739615823,6.74449528,156.25,156.22,26.0]
[1748739616450,6.74449528,156.24,156.21,6.40147178]
[1748739617528,6.74449528,156.23,156.18,32.74449528]
[1748739617926,6.74449528,156.22,156.18,32.74449528]
[1748739618624,6.74449528,156.22,156.19,6.40245854]
[1748739619656,6.74449528,156.23,156.19,6.40245854]
[1748739621731,16.58012975,156.25,156.19,13.14695382]
[1748739621942,6.74449528,156.24,156.2,6.74449528]
[1748739622750,6.74449528,156.23,156.19,6.40245854]
[1748739627549,45.94449528,156.24,156.19,13.14695382]
[1748739628151,45.94449528,156.24,156.19,6.40245854]
[1748739628152,6.74449528,156.23,156.19,6.40245854]
[1748739629166,45.94449528,156.24,156.19,13.14695382]
[1748739630851,6.74449528,156.23,156.19,13.14695382]
[1748739632044,6.74449528,156.24,156.2,6.74449528]
[1748739632367,65.46626438,156.25,156.2,6.74449528]
[1748739633066,58.7217691,156.25,156.2,6.74449528]
[1748739633371,65.46626438,156.25,156.2,6.74449528]
[1748739633670,65.46626438,156.25,156.21,6.40163881]
[1748739635968,55.28626438,156.25,156.21,6.40163881]
[1748739636972,6.74449528,156.24,156.21,6.40163881]
[1748739637355,6.74449528,156.24,156.19,13.14663539]
[1748739638058,6.74449528,156.23,156.19,13.14663539]
[1748739638369,6.74449528,156.21,156.19,26.0]
[1748739639577,6.74449528,156.22,156.19,26.0]
[1748739640152,6.74449528,156.23,156.19,32.40237568]
[1748739641250,6.74449528,156.24,156.19,39.14687096]
[1748739642174,48.5417691,156.25,156.19,39.14687096]
[1748739642363,6.74449528,156.24,156.19,39.14687096]
[1748739644965,6.74449528,156.24,156.19,13.14687096]
[1748739646254,6.74449528,156.22,156.19,26.0]
[1748739646463,6.74449528,156.21,156.18,6.4027531]
[1748739649868,6.74449528,156.21,156.17,39.14762357]
[1748739650205,6.74449528,156.21,156.17,26.0]
[1748739650206,6.74449528,156.19,156.17,26.0]
[1748739650357,6.74449528,156.19,156.15,32.40385177]
[1748739651294,6.74449528,156.18,156.15,32.40385177]
[1748739651695,6.74449528,156.2,156.15,39.14834705]
[1748739652198,45.94449528,156.21,156.16,6.74449528]
[1748739652364,25.90019737,156.22,156.17,6.74449528]
[1748739652566,25.90019737,156.22,156.15,48.41409832]
[1748739652567,58.35570209,156.22,156.18,32.74449528]
[1748739652794,8.99570209,156.22,156.18,32.74449528]
[1748739652973,6.74449528,156.23,156.18,32.74449528]
[1748739653173,6.74449528,156.23,156.19,6.40245854]
[1748739653482,6.74449528,156.22,156.19,6.40245854]
[1748739654740,10.51752781,156.22,156.19,6.40245854]
[1748739655998,10.51752781,156.23,156.19,6.40245854]
[1748739662585,10.51752781,156.22,156.19,6.40245854]
[1748739664727,10.51752781,156.21,156.18,32.40274559]
[1748739664887,10.51752781,156.21,156.18,26.0]
[1748739665088,10.51752781,156.19,156.15,32.40400549]
[1748739666102,10.51752781,156.19,156.15,42.9215333]
[1748739666912,49.71752781,156.2,156.16,10.51752781]
[1748739667221,39.2,156.2,156.16,10.51752781]
[1748739667797,39.2,156.2,156.17,10.51752781]
[1748739668013,39.2,156.2,156.18,6.40286848]
[1748739669094,39.2,156.2,156.16,10.51752781]
[1748739669305,39.2,156.2,156.17,6.40313867]
[1748739675305,39.2,156.2,156.17,16.92066648]
[1748739675509,49.69752781,156.23,156.18,10.51752781]
[1748739676641,45.91103045,156.23,156.18,6.73103045]
[1748739677008,45.91103045,156.23,156.18,8.28253045]
[1748739678712,45.91103045,156.23,156.19,6.40245854]
[1748739680330,6.73103045,156.24,156.19,13.13348899]
[1748739680526,45.91103045,156.24,156.19,13.13348899]
[1748739682633,6.73103045,156.24,156.19,13.13348899]
[1748739682828,45.91103045,156.24,156.19,13.13348899]
[1748739683137,6.73103045,156.24,156.19,13.13348899]
[1748739683432,45.91103045,156.24,156.19,13.13348899]
[1748739684315,39.18,156.24,156.19,13.13348899]
[1748739684510,45.91103045,156.24,156.19,13.13348899]
[1748739687625,6.73103045,156.23,156.19,13.13348899]
[1748739688616,6.73103045,156.21,156.18,26.0]
[1748739689341,6.73103045,156.22,156.18,26.0]
[1748739689837,6.73103045,156.22,156.18,32.40282473]
[1748739691930,6.73103045,156.21,156.17,6.40316475]
[1748739692131,6.73103045,156.19,156.16,32.40353314]
[1748739694120,6.73103045,156.18,156.16,26.0]
[1748739694317,6.73103045,156.18,156.15,6.40398649]
[1748739695235,6.73103045,156.18,156.14,33.97725674]
[1748739695416,6.4025315,156.19,156.14,33.97725674]
[1748739695417,6.73103045,156.17,156.14,33.97725674]
[1748739696723,10.52434101,156.17,156.14,33.97725674]
[1748739697631,10.52434101,156.18,156.14,33.97725674]
[1748739698746,10.52434101,156.16,156.12,32.40506731]
[1748739699272,10.52434101,156.15,156.12,32.40506731]
[1748739699443,10.52434101,156.13,156.1,27.6529]
[1748739699644,10.52434101,156.13,156.1,8.05895352]
[1748739699973,45.58382558,156.16,156.1,8.05895352]
[1748739699974,10.52434101,156.12,156.1,8.05895352]
[1748739700848,10.52434101,156.13,156.1,8.05895352]
[1748739702747,10.52434101,156.13,156.1,6.40605352]
[1748739704961,6.40413307,156.15,156.09,32.40645686]
[1748739705134,10.52434101,156.11,156.07,36.52434101]
[1748739705336,10.52434101,156.11,156.07,6.4073813]
[1748739705751,10.52434101,156.11,156.07,32.4073813]
[1748739705958,10.52434101,156.1,156.07,26.0]
[1748739706132,10.52434101,156.08,156.05,32.40811516]
[1748739706328,10.52434101,156.08,156.05,6.40811516]
[1748739710278,10.52434101,156.09,156.05,42.93245617]
[1748739710452,59.88434101,156.11,156.06,10.52434101]
[1748739710639,10.52434101,156.09,156.05,58.95296241]
[1748739710832,10.52434101,156.09,156.05,32.40811516]
[1748739711474,10.52434101,156.09,156.05,6.40811516]
[1748739711671,10.52434101,156.08,156.05,6.40811516]
[1748739711874,10.52434101,156.08,156.04,6.40858151]
[1748739715160,10.52434101,156.08,156.05,6.6396]
[1748739715356,10.52434101,156.08,156.05,8.1482]
[1748739716077,10.52434101,156.08,156.05,14.55604146]
[1748739718875,10.52434101,156.09,156.05,14.55604146]
[1748739720466,10.52434101,156.09,156.05,7.91644146]
[1748739721769,49.72434101,156.1,156.05,18.44078247]
[1748739723591,10.52434101,156.09,156.05,7.91644146]
[1748739724374,10.52434101,156.08,156.05,7.91644146]
[1748739725079,10.52434101,156.06,156.05,1.5086]
[1748739725651,10.52434101,156.06,156.03,6.40897652]
[1748739726267,39.2,156.09,156.03,16.93331753]
[1748739726465,10.52434101,156.08,156.03,16.93331753]
[1748739727887,10.52434101,156.08,156.03,32.95587729]
[1748739728273,10.52434101,156.07,156.03,16.93331753]
[1748739728666,10.52434101,156.07,156.03,6.40897652]
[1748739729904,10.52434101,156.06,156.02,32.40928992]
[1748739730088,10.52434101,156.05,156.02,32.40928992]
[1748739731272,10.52434101,156.05,156.02,26.0]
[1748739732694,10.52434101,156.05,156.02,32.40942354]
[1748739733775,10.52434101,156.05,156.01,6.40984552]
[1748739735617,10.52434101,156.05,156.01,16.93418653]
[1748739735775,45.60711937,156.08,156.02,10.52434101]
[1748739735776,10.52434101,156.06,156.02,10.52434101]
[1748739736075,6.40666681,156.09,156.01,6.40984552]
[1748739736076,49.72434101,156.09,156.04,36.52434101]
[1748739736894,49.72434101,156.09,156.05,6.40820249]
[1748739737325,10.52434101,156.09,156.05,6.40820249]
[1748739737486,49.72434101,156.1,156.05,16.9325435]
[1748739739096,10.52434101,156.1,156.05,16.9325435]
[1748739739273,49.72434101,156.1,156.05,16.9325435]
[1748739743422,49.72434101,156.1,156.05,18.4728435]
[1748739743783,10.52434101,156.09,156.05,18.4728435]
[1748739745411,10.52434101,156.09,156.05,7.94850249]
[1748739745883,10.52434101,156.08,156.05,7.94850249]
[1748739746321,10.52434101,156.09,156.05,7.94850249]
[1748739747495,10.52434101,156.08,156.04,32.40849834]
[1748739748996,10.52434101,156.08,156.04,42.93283935]
[1748739749603,49.72434101,156.09,156.04,42.93283935]
[1748739750106,49.72434101,156.09,156.05,10.52434101]
[1748739750307,39.2,156.09,156.06,10.52434101]
[1748739750811,39.2,156.09,156.07,6.4073813]
[1748739751481,10.52434101,156.09,156.06,6.40769991]
[1748739759411,10.52434101,156.08,156.05,6.40807153]
[1748739759614,10.52434101,156.08,156.02,18.64964886]
[1748739759615,0.14216157,156.09,156.02,6.40943468]
[1748739759912,10.52434101,156.07,156.02,16.93377569]
[1748739761303,10.52434101,156.08,156.04,6.40861317]
[1748739761511,39.18,156.1,156.04,16.93295418]
[1748739761512,10.52434101,156.09,156.04,16.93295418]
[1748739763003,10.52434101,156.09,156.05,10.52434101]
[1748739764403,10.52434101,156.09,156.06,6.40779187]
[1748739765407,10.52434101,156.08,156.04,6.40861317]
[1748739765611,10.52434101,156.07,156.04,6.40861317]
[1748739768703,10.52434101,156.07,156.03,16.93324843]
[1748739768915,10.52434101,156.06,156.03,6.40890742]
[1748739772924,10.52434101,156.07,156.03,6.40890742]
[1748739778731,6.74458462,156.07,156.03,6.40890742]
[1748739779845,6.74458462,156.08,156.03,13.15349204]
[1748739780718,10.14,156.1,156.05,6.74458462]
[1748739780921,10.14,156.1,156.06,6.74458462]
[1748739781223,45.92458462,156.11,156.06,6.74458462]
[1748739781408,6.74458462,156.11,156.06,6.74458462]
[1748739782716,10.53305501,156.11,156.06,16.94084688]
[1748739784720,10.53305501,156.1,156.06,6.40779187]
[1748739785119,10.53305501,156.09,156.05,26.0]
[1748739785422,10.53305501,156.08,156.03,10.53305501]
[1748739785625,10.53305501,156.07,156.03,26.0]
[1748739786534,10.53305501,156.06,156.03,26.0]
[1748739786921,10.53305501,156.05,156.03,26.0]
[1748739787731,10.53305501,156.06,156.03,32.40893852]
[1748739787937,10.53305501,156.07,156.03,32.40893852]
[1748739788638,10.53305501,156.05,156.03,26.0]
[1748739791861,10.53305501,156.05,156.03,32.40888815]
[1748739793150,10.53305501,156.05,156.03,26.0]
[1748739795849,10.53305501,156.05,156.03,32.40901948]
[1748739796049,10.53305501,156.05,156.03,26.0]
[1748739800556,10.53305501,156.06,156.03,26.0]
[1748739801258,10.53305501,156.06,156.03,32.4090096]
[1748739804762,6.74562761,156.06,156.03,32.4090096]
[1748739805655,6.74562761,156.05,156.03,26.0]
[1748739807246,15.60958957,156.07,155.97,44.8173973]
[1748739807247,6.74562761,156.04,155.98,6.41107834]
[1748739807451,6.74562761,156.02,155.98,6.41107834]
[1748739807638,6.74562761,156.02,155.99,26.0]
[1748739808042,6.74562761,156.01,155.98,6.41107834]
[1748739808363,6.74562761,156.02,155.98,6.41107834]
[1748739810763,10.54538927,156.02,155.98,6.41107834]
[1748739811347,39.16,156.04,155.98,6.41107834]
[1748739811543,0.14216157,156.05,155.98,6.41107834]
[1748739811544,49.70538927,156.05,156.0,10.54538927]
[1748739811942,10.54538927,156.05,156.01,10.54538927]
[1748739812850,10.54538927,156.05,156.02,6.40943468]
[1748739813976,48.36220246,156.07,156.02,6.40943468]
[1748739814186,24.32153207,156.08,156.04,10.54538927]
[1748739814469,3.66658742,156.08,156.07,10.54538927]
[1748739814962,3.66658742,156.08,156.07,16.95277057]
[1748739816573,49.70538927,156.14,156.07,16.95277057]
[1748739816770,49.70538927,156.14,156.09,10.54538927]
[1748739817067,49.70538927,156.14,156.1,6.4061499]
[1748739817269,10.54538927,156.14,156.1,6.4061499]
[1748739817474,49.70538927,156.14,156.1,6.4061499]
[1748739818066,49.70538927,156.15,156.11,10.54538927]
[1748739819143,49.70538927,156.15,156.1,16.95153917]
[1748739819545,10.54538927,156.15,156.1,16.95153917]
[1748739819745,49.70538927,156.15,156.1,16.95153917]
[1748739820243,10.54538927,156.15,156.1,16.95153917]
[1748739820566,49.70538927,156.15,156.1,16.95153917]
[1748739821772,49.70538927,156.15,156.1,6.4061499]
[1748739822063,49.70538927,156.15,156.1,16.95153917]
[1748739822243,10.54538927,156.14,156.1,16.95153917]
[1748739822867,10.54538927,156.12,156.09,32.40643394]
[1748739823555,10.54538927,156.13,156.09,32.40643394]
[1748739825572,10.54538927,156.14,156.09,42.95182321]
[1748739827249,10.54538927,156.13,156.09,32.40643394]
[1748739827476,10.54538927,156.13,156.09,42.95182321]
[1748739831081,10.54538927,156.13,156.09,32.40643394]
[1748739832470,10.54538927,156.13,156.09,42.95182321]
[1748739832668,10.54538927,156.13,156.09,32.40643394]
[1748739836588,10.54538927,156.13,156.09,42.95182321]
[1748739840170,45.56416571,156.15,156.09,42.95182321]
[1748739840171,10.54538927,156.12,156.09,26.0]
[1748739842777,6.40458396,156.14,156.09,32.40648147]
[1748739842778,0.14216157,156.13,156.09,32.40648147]
[1748739843092,10.54538927,156.13,156.09,42.95187074]
[1748739843293,10.54538927,156.1,156.08,26.0]
[1748739843495,10.54538927,156.1,156.05,10.54538927]
[1748739843496,10.54538927,156.09,156.06,6.40779187]
[1748739843695,10.54538927,156.1,156.06,6.40779187]
[1748739843909,10.54538927,156.1,156.06,16.95318114]
[1748739844085,49.68538927,156.11,156.06,16.95318114]
[1748739844582,39.14,156.11,156.07,10.54538927]
[1748739844777,49.68538927,156.11,156.07,10.54538927]
[1748739844976,10.54538927,156.1,156.06,16.95318114]
[1748739845392,10.54538927,156.1,156.06,6.40779187]
[1748739845585,10.54538927,156.1,156.02,40.7006892]
[1748739845586,10.54538927,156.07,156.02,10.54538927]
[1748739845781,10.54538927,156.06,156.01,16.95523479]
[1748739845999,10.54538927,156.05,156.01,6.40984552]
[1748739846183,10.54538927,156.04,156.0,7.99714074]
[1748739846384,10.54538927,156.04,156.0,33.99714074]
[1748739846590,10.54538927,156.04,156.0,44.54253001]
[1748739847177,10.54538927,156.05,156.0,44.54253001]
[1748739849190,10.54538927,156.04,156.0,33.99714074]
[1748739850806,10.54538927,156.05,156.0,44.54253001]
[1748739853907,10.54538927,156.04,156.0,33.99714074]
[1748739855501,10.54538927,156.03,156.0,26.0]
[1748739855706,10.54538927,156.03,156.0,32.41015438]
[1748739855911,10.54538927,156.04,156.0,32.41015438]
[1748739857458,10.54538927,156.02,155.98,26.0]
[1748739857787,49.82755084,156.03,155.98,36.54538927]
[1748739858902,39.14,156.03,155.99,10.54538927]
[1748739859295,39.14,156.03,156.0,6.41025641]
[1748739860808,49.68538927,156.03,155.99,6.41066735]
[1748739861006,10.54538927,156.03,155.99,6.41066735]
[1748739861206,49.68538927,156.03,155.99,6.41066735]
[1748739862523,10.54538927,156.02,155.97,32.41137718]
[1748739862836,10.54538927,156.02,155.97,26.0]
[1748739862837,10.54538927,155.99,155.97,26.0]
[1748739863000,10.54538927,156.0,155.97,32.41141815]
[1748739866305,10.54538927,156.0,155.97,26.0]
[1748739868303,10.54538927,155.98,155.94,1.6257]
[1748739868714,10.54538927,155.98,155.94,12.17108927]